bitfinex/quotes_SOLUSD_20240624
["timestamp","ask_amount","ask_price","bid_price","bid_amount"]
[1719226937058,20.0,127.09,126.97,466.0549911]
[1719226937256,3.1477,127.13,126.97,466.0549911]
[1719226937447,23.1477,127.13,126.97,466.0549911]
[1719226937647,23.1477,127.13,126.99,100.0]
[1719226938560,23.1477,127.13,127.01,200.0]
[1719226938758,3.1477,127.13,127.01,100.0]
[1719226939264,37.98738042,127.14,127.03,200.0]
[1719226939465,3.1477,127.17,127.05,100.0]
[1719226939677,6.22529651,127.19,127.05,566.0549911]
[1719226939856,31.521487,127.18,127.09,100.0]
[1719226940054,31.521487,127.18,127.1,15.558]
[1719226940252,20.0,127.17,127.1,15.558]
[1719226940553,31.521487,127.18,127.1,15.558]
[1719226940765,6.35991125,127.23,127.11,100.0]
[1719226940948,31.510658,127.23,127.14,6.3107]
[1719226941148,31.510658,127.23,127.15,116.0198]
[1719226941480,3.1477,127.32,127.16,20.0]
[1719226941652,31.496037,127.31,127.16,366.0549911]
[1719226941979,41.496037,127.31,127.16,366.0549911]
[1719226942180,31.496037,127.31,127.16,366.0549911]
[1719226943176,31.496037,127.31,127.16,466.0549911]
[1719226943374,20.0,127.3,127.18,100.0]
[1719226943580,31.496037,127.31,127.16,566.0549911]
[1719226944348,31.496037,127.31,127.17,20.0]
[1719226945479,31.496037,127.31,127.16,466.0549911]
[1719226946164,65.0,127.3,127.16,566.0549911]
[1719226946477,65.0,127.3,127.16,466.0549911]
[1719226947057,65.0,127.3,127.16,366.0549911]
[1719226948083,20.0,127.3,127.18,100.0]
[1719226949685,20.0,127.3,127.18,200.0]
[1719226949870,20.0,127.3,127.22,100.0]
[1719226950064,20.0,127.3,127.22,466.0549911]
[1719226950375,34.627234,127.36,127.22,466.0549911]
[1719226950589,20.0,127.35,127.24,100.0]
[1719226950895,3.1477,127.36,127.25,6.143]
[1719226951059,3.1477,127.36,127.25,106.143]
[1719226951261,31.474104,127.39,127.25,6.143]
[1719226951262,6.4885805,127.38,127.25,6.143]
[1719226951473,34.621804,127.39,127.25,6.143]
[1719226952075,31.474104,127.39,127.26,15.6489]
[1719226952275,31.474104,127.39,127.26,115.6489]
[1719226952474,31.474104,127.39,127.26,15.6489]
[1719226952780,20.0,127.38,127.26,15.6489]
[1719226953760,45.0,127.37,127.26,15.6489]
[1719226953961,20.0,127.36,127.26,15.6489]
[1719226954164,31.474104,127.39,127.26,15.6489]
[1719226954375,20.0,127.38,127.26,15.6489]
[1719226954975,3.1477,127.37,127.25,6.143]
[1719226955289,48.1477,127.37,127.25,372.1979911]
[1719226955895,65.0,127.36,127.25,372.1979911]
[1719226956071,20.0,127.36,127.25,372.1979911]
[1719226956394,65.0,127.35,127.25,372.1979911]
[1719226958086,65.0,127.35,127.25,366.0549911]
[1719226959281,0.78585462,127.26,127.25,366.0549911]
[1719226962963,0.78585462,127.26,127.19,366.0549911]
[1719226968085,45.78585462,127.26,127.19,366.0549911]
[1719226968272,20.0,127.25,127.19,366.0549911]
[1719226968994,0.78585462,127.26,127.19,366.0549911]
[1719226969293,65.78585462,127.26,127.19,366.0549911]
[1719226969473,0.78585462,127.26,127.19,366.0549911]
[1719226969672,20.78585462,127.26,127.19,366.0549911]
[1719226971485,0.78585462,127.26,127.19,366.0549911]
[1719226973106,6.271499,127.25,127.19,366.0549911]
[1719226973592,20.0,127.24,127.19,366.0549911]
[1719226977499,0.78585462,127.26,127.19,366.0549911]
[1719226979310,0.78585462,127.2,127.19,366.0549911]
[1719226979605,20.0,127.28,127.19,366.0549911]
[1719226980895,19.0,127.28,127.19,366.0549911]
[1719226982009,45.0,127.27,127.19,366.0549911]
[1719226982209,20.0,127.29,127.19,366.0549911]
[1719226982404,45.0,127.27,127.19,366.0549911]
[1719226982804,45.0,127.28,127.19,366.0549911]
[1719226987398,20.0,127.29,127.19,366.0549911]
[1719226988009,20.0,127.29,127.21,6.5711]
[1719226988205,6.27149887,127.31,127.21,6.5711]
[1719226988413,3.9333,127.35,127.21,6.5711]
[1719226988616,20.0,127.3,127.21,372.6260911]
[1719226989916,45.0,127.29,127.21,372.6260911]
[1719226990608,20.0,127.3,127.21,372.6260911]
[1719226991902,45.0,127.29,127.21,372.6260911]
[1719226992101,20.0,127.3,127.21,372.6260911]
[1719226992304,45.0,127.29,127.21,372.6260911]
[1719226994026,45.0,127.29,127.21,6.5711]
[1719226995319,26.29692591,127.3,127.21,6.5711]
[1719226995722,20.0,127.3,127.21,6.5711]
[1719226995914,20.0,127.3,127.25,15.9762]
[1719226996109,3.9333,127.39,127.25,15.9762]
[1719226996310,20.0,127.38,127.25,382.0311911]
[1719226997609,30.0,127.38,127.25,382.0311911]
[1719226998031,77.35,127.38,127.25,382.0311911]
[1719226998217,45.0,127.37,127.25,382.0311911]
[1719226998606,57.35,127.36,127.25,382.0311911]
[1719226998810,48.9333,127.35,127.25,382.0311911]
[1719226999406,0.78585462,127.26,127.25,382.0311911]
[1719226999607,48.9333,127.35,127.25,15.9762]
[1719227000110,20.0,127.38,127.25,15.9762]
[1719227000807,30.0,127.38,127.25,15.9762]
[1719227001606,45.0,127.37,127.25,15.9762]
[1719227002935,20.0,127.38,127.25,382.0311911]
[1719227004221,45.0,127.37,127.25,382.0311911]
[1719227006044,92.35,127.37,127.25,382.0311911]
[1719227010752,102.35,127.37,127.25,382.0311911]
[1719227010955,92.35,127.37,127.25,382.0311911]
[1719227011141,10.0,127.35,127.25,382.0311911]
[1719227011446,92.35,127.34,127.25,382.0311911]
[1719227011627,47.35,127.34,127.25,382.0311911]
[1719227011815,92.35,127.33,127.25,15.9762]
[1719227013443,1.9134,127.26,127.25,15.9762]
[1719227013642,92.35,127.33,127.25,15.9762]
[1719227014147,47.35,127.37,127.25,15.9762]
[1719227014445,47.35,127.37,127.26,6.1252]
[1719227017122,20.0,127.38,127.29,15.3645]
[1719227017329,20.0,127.38,127.3,21.6955]
[1719227018650,45.0,127.37,127.3,21.6955]
[1719227020854,45.0,127.37,127.3,387.7504911]
[1719227021851,20.0,127.38,127.3,387.7504911]
[1719227022756,15.6189,127.45,127.32,6.3814]
[1719227022955,15.6189,127.45,127.32,372.4363911]
[1719227023275,31.464711,127.42,127.32,372.4363911]
[1719227023847,45.0,127.41,127.32,372.4363911]
[1719227024840,45.0,127.41,127.32,6.3814]
[1719227026157,31.464711,127.42,127.34,6.3177]
[1719227026364,6.40648961,127.45,127.35,15.6443]
[1719227026537,0.15523138,127.46,127.35,15.6443]
[1719227026735,31.458084,127.44,127.35,15.6443]
[1719227026963,31.458084,127.44,127.36,6.4161]
[1719227027551,31.458084,127.44,127.37,15.8856]
[1719227027860,0.15523138,127.46,127.38,6.4161]
[1719227028069,31.60878038,127.46,127.38,372.4710911]
[1719227028376,0.15523138,127.46,127.38,372.4710911]
[1719227028563,0.15523138,127.46,127.4,6.1091]
[1719227029373,0.15523138,127.46,127.41,16.3371]
[1719227029664,3.29973938,127.46,127.41,16.3371]
[1719227032757,48.29973938,127.46,127.41,16.3371]
[1719227034670,48.29973938,127.46,127.38,366.0549911]
[1719227035169,48.29973938,127.46,127.37,6.1496]
[1719227035548,101.56683938,127.46,127.37,0.2325]
[1719227035751,101.56683938,127.46,127.36,15.3514]
[1719227037171,47.35,127.44,127.36,15.3514]
[1719227037349,45.0,127.43,127.36,15.3514]
[1719227037545,3.29973938,127.46,127.36,15.3514]
[1719227038050,3.29973938,127.46,127.36,381.4063911]
[1719227038656,3.29973938,127.46,127.37,6.3211]
[1719227039463,0.78511424,127.39,127.37,6.3211]
[1719227040750,3.29973938,127.46,127.37,6.3211]
[1719227040948,3.29973938,127.46,127.37,372.3760911]
[1719227041149,3.29973938,127.46,127.38,15.4982]
[1719227041372,3.29973938,127.46,127.39,6.4317]
[1719227043659,48.29973938,127.46,127.39,6.4317]
[1719227044666,3.29973938,127.46,127.39,372.4866911]
[1719227045049,3.29973938,127.46,127.4,15.9001]
[1719227047658,3.29973938,127.46,127.41,6.1079]
[1719227047858,1.43165609,127.47,127.42,22.6438]
[1719227048064,1.43165609,127.47,127.42,21.5401]
[1719227050076,1.1193078,127.5,127.42,100.0]
[1719227050277,1.1193078,127.5,127.45,21.3929]
[1719227050576,1.1193078,127.5,127.45,387.4478911]
[1719227051761,1.51653832,127.55,127.46,22.6397]
[1719227051969,1.51653832,127.55,127.47,6.6564]
[1719227052470,9.104681,127.52,127.47,6.6564]
[1719227052778,1.51653832,127.55,127.47,6.6564]
[1719227053082,9.104681,127.54,127.48,15.5932]
[1719227053302,1.51653832,127.55,127.49,6.4178]
[1719227053577,1.13410169,127.59,127.53,15.5932]
[1719227055064,1.13410169,127.59,127.52,6.4178]
[1719227055382,1.13410169,127.59,127.5,16.4876]
[1719227056082,46.13410169,127.59,127.5,16.4876]
[1719227057080,46.13410169,127.59,127.49,366.0549911]
[1719227057277,1.13410169,127.59,127.49,366.0549911]
[1719227059283,0.78437525,127.5,127.46,15.4956]
[1719227070093,0.78437525,127.5,127.46,381.5505911]
[1719227070270,1.13410169,127.59,127.47,6.2764]
[1719227070475,32.55694469,127.59,127.47,372.3313911]
[1719227071591,38.83088847,127.59,127.47,372.3313911]
[1719227071895,45.0,127.58,127.47,372.3313911]
[1719227072884,38.83088847,127.59,127.47,372.3313911]
[1719227074582,45.0,127.58,127.47,372.3313911]
[1719227075089,32.55694469,127.59,127.49,100.0]
[1719227075290,32.55694469,127.59,127.51,6.5175]
[1719227075683,1.13410169,127.59,127.51,6.5175]
[1719227077392,46.13410169,127.59,127.51,6.5175]
[1719227079385,0.78425222,127.53,127.51,6.5175]
[1719227082288,0.78425222,127.53,127.5,16.3755]
[1719227082491,0.78425222,127.53,127.48,6.1152]
[1719227084691,1.13410169,127.59,127.49,16.2371]
[1719227084891,1.13410169,127.59,127.49,382.2920911]
[1719227086679,1.13410169,127.59,127.5,6.0272]
[1719227086882,1.13410169,127.59,127.5,388.1280911]
[1719227088489,3.141572,127.58,127.5,388.1280911]
[1719227093000,3.141572,127.58,127.51,21.599]
[1719227094100,3.141572,127.58,127.51,121.599]
[1719227094295,1.13410169,127.59,127.51,121.599]
[1719227095327,1.13410169,127.59,127.51,21.599]
[1719227096808,1.13410169,127.59,127.51,121.599]
[1719227098441,1.13410169,127.59,127.51,387.6539911]
[1719227099296,0.78425222,127.53,127.51,387.6539911]
[1719227100018,1.13410169,127.59,127.51,387.6539911]
[1719227100200,1.13410169,127.59,127.51,487.6539911]
[1719227101734,1.13410169,127.59,127.51,387.6539911]
[1719227101900,7.9630871,127.61,127.55,6.0587]
[1719227102119,0.8754931,127.61,127.55,6.0587]
[1719227102636,0.4762,127.57,127.55,6.0587]
[1719227102834,0.8754931,127.61,127.55,6.0587]
[1719227107544,0.8754931,127.61,127.51,6.0859]
[1719227107915,45.8754931,127.61,127.51,6.0859]
[1719227108536,45.8754931,127.61,127.49,15.6522]
[1719227111330,55.8754931,127.61,127.49,15.6522]
[1719227112431,15.7255,127.6,127.49,15.6522]
[1719227112731,45.0,127.59,127.49,15.6522]
[1719227113734,45.0,127.59,127.48,6.0374]
[1719227115054,55.0,127.59,127.48,6.0374]
[1719227116145,45.0,127.59,127.48,6.0374]
[1719227116652,15.7255,127.6,127.48,6.0374]
[1719227118354,92.19,127.59,127.46,15.817]
[1719227118554,6.1798,127.58,127.46,15.817]
[1719227118752,45.0,127.57,127.46,15.817]
[1719227119347,0.78455987,127.47,127.46,15.817]
[1719227120459,0.78455987,127.47,127.45,6.4423]
[1719227120634,0.78455987,127.47,127.42,21.8063]
[1719227121363,0.78455987,127.47,127.39,15.4483]
[1719227121549,0.78455987,127.47,127.39,21.8752]
[1719227123961,6.4411,127.46,127.36,400.4184]
[1719227124372,45.0,127.45,127.36,400.4184]
[1719227127048,45.0,127.45,127.35,6.3564]
[1719227128445,45.0,127.45,127.33,16.4807]
[1719227128853,8.20104102,127.44,127.33,16.4807]
[1719227129163,45.0,127.43,127.33,16.4807]
[1719227129863,8.20104102,127.44,127.33,116.4807]
[1719227130075,8.20104102,127.44,127.34,45.0]
[1719227130867,8.20104102,127.44,127.33,16.4807]
[1719227131851,76.461051,127.43,127.33,16.4807]
[1719227132354,31.461051,127.43,127.33,16.4807]
[1719227132555,8.20104102,127.44,127.34,45.0]
[1719227133976,8.20104102,127.44,127.34,383.9]
[1719227134556,45.0,127.43,127.34,383.9]
[1719227134876,8.20104102,127.44,127.34,383.9]
[1719227135062,45.0,127.43,127.34,383.9]
[1719227135575,15.843,127.42,127.34,383.9]
[1719227135777,45.0,127.41,127.34,383.9]
[1719227139353,0.78455987,127.36,127.34,383.9]
[1719227139556,0.78455987,127.36,127.29,505.4913]
[1719227139760,0.78455987,127.36,127.3,45.0]
[1719227141488,0.78455987,127.36,127.32,15.7786]
[1719227141648,31.45288,127.46,127.35,15.7786]
[1719227141850,15.3955,127.49,127.36,51.293]
[1719227142064,8.19808268,127.47,127.36,51.293]
[1719227145073,8.19808268,127.47,127.37,100.0]
[1719227145253,8.19808268,127.47,127.39,106.2757]
[1719227145454,47.840684,127.52,127.4,45.0]
[1719227145755,56.03952353,127.52,127.4,428.9]
[1719227146777,8.19883953,127.52,127.41,16.3985]
[1719227147076,8.19883953,127.52,127.42,45.0]
[1719227147561,14.42165546,127.52,127.42,45.0]
[1719227148883,14.42165546,127.52,127.43,6.608]
[1719227148884,8.19883953,127.52,127.43,6.608]
[1719227149089,8.19883953,127.52,127.45,15.2005]
[1719227149254,31.4363,127.53,127.46,45.0]
[1719227149672,6.19733343,127.55,127.46,45.0]
[1719227149673,8.1985583,127.54,127.46,45.0]
[1719227150981,8.1985583,127.54,127.45,399.1005]
[1719227151360,45.0,127.53,127.45,399.1005]
[1719227151557,8.1985583,127.54,127.45,399.1005]
[1719227151859,45.0,127.53,127.45,399.1005]
[1719227152984,8.1985583,127.54,127.45,399.1005]
[1719227154385,45.0,127.53,127.45,399.1005]
[1719227158266,60.1525,127.53,127.45,399.1005]
[1719227159396,0.78462143,127.47,127.45,383.9]
[1719227159570,0.78462143,127.47,127.43,6.608]
[1719227161400,0.78462143,127.47,127.41,400.4872]
[1719227162208,0.78462143,127.47,127.4,6.43]
[1719227164381,0.78462143,127.47,127.38,16.5951]
[1719227165510,16.29252143,127.47,127.38,16.5951]
[1719227166814,0.78462143,127.47,127.38,16.5951]
[1719227167113,0.78462143,127.47,127.39,45.0]
[1719227167412,0.78462143,127.47,127.38,16.5951]
[1719227169811,0.78462143,127.47,127.38,400.4951]
[1719227170228,0.78462143,127.47,127.39,45.0]
[1719227170623,0.78462143,127.47,127.39,145.0]
[1719227171504,0.78462143,127.47,127.39,45.0]
[1719227171932,0.78462143,127.47,127.38,400.4951]
[1719227174234,21.8719,127.46,127.38,383.9]
[1719227174419,45.0,127.45,127.38,383.9]
[1719227175714,45.0,127.45,127.36,390.3366]
[1719227176127,45.0,127.45,127.36,383.9]
[1719227178329,21.8719,127.46,127.37,45.0]
[1719227179132,21.8719,127.46,127.37,145.0]
[1719227179342,0.78462143,127.39,127.37,45.0]
[1719227179641,0.78462143,127.39,127.37,383.9]
[1719227180022,18.73264464,127.46,127.37,383.9]
[1719227180219,45.0,127.45,127.35,399.4925]
[1719227181114,43.0,127.45,127.35,399.4925]
[1719227181729,43.0,127.45,127.35,383.9]
[1719227182119,8.19835519,127.44,127.35,383.9]
[1719227182425,8.19835519,127.44,127.33,383.9]
[1719227182743,46.69,127.42,127.33,383.9]
[1719227182956,52.7013,127.41,127.33,383.9]
[1719227183245,15.8168,127.4,127.33,383.9]
[1719227183447,60.8168,127.4,127.27,407.0121]
[1719227183825,107.0068,127.4,127.27,407.0121]
[1719227185961,60.8168,127.4,127.27,507.0121]
[1719227186124,60.8168,127.4,127.28,45.0]
[1719227187744,60.3168,127.4,127.28,428.9]
[1719227189560,60.3168,127.4,127.28,383.9]
[1719227189730,107.5068,127.4,127.28,383.9]
[1719227190542,53.6608,127.39,127.28,383.9]
[1719227190857,61.1295,127.38,127.28,383.9]
[1719227191246,108.3195,127.38,127.28,383.9]
[1719227191566,16.5691,127.36,127.28,383.9]
[1719227191856,45.0,127.35,127.28,383.9]
[1719227192564,8.20095407,127.34,127.28,383.9]
[1719227192864,16.5691,127.36,127.25,100.0]
[1719227193164,24.77257439,127.36,127.24,390.4982]
[1719227193353,45.0,127.35,127.24,390.4982]
[1719227193554,45.0,127.35,127.25,45.0]
[1719227194767,45.0,127.35,127.24,390.4982]
[1719227196356,6.3161,127.34,127.24,383.9]
[1719227196871,45.0,127.33,127.24,383.9]
[1719227197764,16.6123,127.32,127.24,383.9]
[1719227197977,45.0,127.31,127.24,383.9]
[1719227198660,45.0,127.31,127.22,255.7]
[1719227198661,45.0,127.31,127.22,383.9]
[1719227198852,45.0,127.31,127.2,405.9106]
[1719227199371,0.78616353,127.22,127.2,405.9106]
[1719227200363,16.6123,127.32,127.23,107.8594]
[1719227200567,6.3161,127.34,127.25,100.0]
[1719227200753,15.9443,127.35,127.27,100.0]
[1719227201066,15.9443,127.35,127.28,45.0]
[1719227201568,15.9443,127.35,127.23,406.1883]
[1719227201767,6.5672,127.34,127.23,383.9]
[1719227201971,15.1402,127.3,127.19,383.9]
[1719227202269,60.1402,127.29,127.19,383.9]
[1719227202581,22.9132,127.28,127.17,383.9]
[1719227202745,45.0,127.27,127.12,406.9594]
[1719227203272,70.1032,127.25,127.12,383.9]
[1719227203502,92.19,127.24,127.12,383.9]
[1719227203772,92.19,127.24,127.1,255.7]
[1719227203773,92.19,127.24,127.1,383.9]
[1719227204472,62.2939,127.22,127.1,383.9]
[1719227204775,92.19,127.21,127.1,383.9]
[1719227207866,53.7544,127.2,127.05,383.9]
[1719227208381,92.19,127.19,127.05,383.9]
[1719227208878,45.0,127.19,127.05,483.9]
[1719227209180,45.0,127.19,127.05,383.9]
[1719227209354,45.0,127.19,127.06,45.0]
[1719227210050,15.6139,127.18,127.05,383.9]
[1719227210255,45.0,127.17,127.05,383.9]
[1719227210450,15.6139,127.18,127.05,383.9]
[1719227210676,6.664,127.16,127.05,383.9]
[1719227211083,15.8284,127.14,127.05,383.9]
[1719227211781,51.0667,127.13,127.05,383.9]
[1719227212251,6.0667,127.13,127.05,383.9]
[1719227212867,45.0,127.12,127.05,383.9]
[1719227213091,45.0,127.12,127.0,383.9]
[1719227213456,92.19,127.12,127.0,383.9]
[1719227214080,47.19,127.1,127.0,383.9]
[1719227214283,6.2156,127.08,127.0,383.9]
[1719227214584,45.0,127.07,126.95,383.9]
[1719227215367,92.19,127.07,126.95,383.9]
[1719227216664,63.2202,127.06,126.95,383.9]
[1719227216880,45.0,127.05,126.95,383.9]
[1719227219385,0.7877117,126.97,126.95,383.9]
[1719227219565,0.7877117,126.97,126.94,0.192416]
[1719227220378,0.7877117,126.97,126.94,384.092416]
[1719227221261,17.3290117,126.97,126.94,0.192416]
[1719227222457,6.2512,126.96,126.9,383.9]
[1719227224886,6.2512,126.96,126.85,383.9]
[1719227225385,6.2512,126.96,126.87,100.0]
[1719227225583,6.2512,126.96,126.85,391.783]
[1719227225969,6.2512,126.96,126.85,383.9]
[1719227226173,6.2512,126.96,126.86,45.0]
[1719227226976,6.2512,126.96,126.85,383.9]
[1719227227289,45.0,126.95,126.83,383.9]
[1719227227976,47.19,126.94,126.83,383.9]
[1719227228176,92.19,126.95,126.83,383.9]
[1719227228583,92.19,126.95,126.81,390.0679]
[1719227228787,6.2512,126.96,126.8,383.9]
[1719227228995,6.2512,126.96,126.82,100.0]
[1719227229174,6.2512,126.96,126.82,107.885]
[1719227229380,6.2512,126.96,126.84,100.0]
[1719227229574,6.2512,126.96,126.84,107.8833]
[1719227229893,6.2512,126.96,126.84,100.0]
[1719227230192,6.2512,126.96,126.82,7.8851]
[1719227230389,53.4412,126.96,126.8,415.05]
[1719227230574,53.4412,126.96,126.8,383.9]
[1719227230575,47.19,126.96,126.8,383.9]
[1719227230898,6.5019,126.93,126.8,383.9]
[1719227231101,45.0,126.92,126.8,383.9]
[1719227232789,6.5019,126.93,126.8,383.9]
[1719227232991,6.5019,126.93,126.84,100.0]
[1719227233300,6.5019,126.93,126.83,200.0]
[1719227233523,15.8735,126.95,126.86,7.8823]
[1719227233676,15.8735,126.95,126.87,100.0]
[1719227233870,15.8735,126.95,126.88,45.0]
[1719227236588,7.2410117,126.97,126.88,45.0]
[1719227236794,7.2410117,126.97,126.91,131.15]
[1719227236795,0.7877117,126.97,126.91,131.15]
[1719227236985,0.7877117,126.97,126.92,152.8784]
[1719227237298,0.7877117,126.97,126.92,45.0]
[1719227237972,0.7877117,126.97,126.92,145.0]
[1719227238291,0.7877117,126.97,126.92,152.8789]
[1719227238512,0.7877117,126.97,126.94,100.0]
[1719227238681,0.7877117,126.97,126.95,45.0]
[1719227239906,0.7877117,126.97,126.94,45.0]
[1719227240084,7.90916584,127.07,126.98,383.1122883]
[1719227240292,22.876,127.08,126.99,45.0]
[1719227241676,22.876,127.08,126.99,145.0]
[1719227243423,22.876,127.08,126.99,45.0]
[1719227244307,22.876,127.08,126.99,428.1122883]
[1719227244708,22.876,127.1,127.0,100.0]
[1719227244918,21.3175,127.11,127.01,45.0]
[1719227245313,44.1935,127.11,127.0,45.0]
[1719227246292,45.0,127.1,126.99,383.1122883]
[1719227247414,44.1935,127.11,126.99,383.1122883]
[1719227247605,45.0,127.1,126.99,383.1122883]
[1719227248500,21.6424,127.09,126.99,383.1122883]
[1719227248699,45.0,127.08,126.96,383.1122883]
[1719227249615,6.4584,127.07,126.96,383.1122883]
[1719227249809,45.0,127.06,126.96,383.1122883]
[1719227250213,6.4584,127.07,126.96,383.1122883]
[1719227251122,6.4584,127.07,126.97,45.0]
[1719227251296,6.4584,127.07,126.98,100.0]
[1719227251497,6.4584,127.07,126.99,45.0]
[1719227251721,6.4584,127.07,126.97,45.0]
[1719227252217,6.4584,127.07,126.96,383.1122883]
[1719227252218,16.3183,127.06,126.96,383.1122883]
[1719227252424,108.5083,127.06,126.96,383.1122883]
[1719227252720,47.19,127.04,126.89,399.1219883]
[1719227252908,47.19,127.02,126.89,399.1219883]
[1719227253500,22.4724,127.01,126.89,383.1122883]
[1719227254410,22.4724,127.01,126.89,483.1122883]
[1719227254730,22.4724,127.01,126.89,383.1122883]
[1719227255704,69.6624,127.01,126.89,383.1122883]
[1719227256212,22.4724,127.01,126.89,383.1122883]
[1719227257096,22.4724,127.01,126.9,45.0]
[1719227257918,69.7342,126.98,126.83,383.1122883]
[1719227258124,22.5442,126.98,126.84,100.0]
[1719227258716,22.5442,126.98,126.8,6.4807]
[1719227258717,47.19,126.94,126.8,6.4807]
[1719227259320,0.78864354,126.81,126.79,16.1177]
[1719227259505,0.78864354,126.81,126.77,37.7924]
[1719227260112,0.78864354,126.81,126.77,6.6424]
[1719227261135,0.78864354,126.81,126.79,31.15]
[1719227261507,0.78864354,126.81,126.79,131.15]
[1719227262321,0.78864354,126.81,126.8,45.0]
[1719227262620,0.78864354,126.81,126.8,145.0]
[1719227263041,21.147,126.95,126.82,100.0]
[1719227263334,21.147,126.95,126.84,106.0867]
[1719227263507,21.147,126.95,126.85,45.0]
[1719227263711,21.147,126.95,126.86,200.0]
[1719227263915,15.3154,127.05,126.88,100.0]
[1719227264211,62.5054,127.05,126.88,383.1122883]
[1719227264511,62.5054,127.05,126.89,45.0]
[1719227264716,15.3154,127.05,126.89,45.0]
[1719227264935,15.3154,127.05,126.9,20.0]
[1719227265118,15.3154,127.05,126.91,45.0]
[1719227265934,62.5054,127.05,126.91,45.0]
[1719227266138,47.19,127.03,126.91,45.0]
[1719227266634,63.0887,127.02,126.91,45.0]
[1719227267014,47.19,127.0,126.88,383.1122883]
[1719227267235,47.19,126.98,126.88,383.1122883]
[1719227267423,47.19,126.98,126.86,383.1122883]
[1719227267612,47.19,126.98,126.85,383.1122883]
[1719227268433,22.717,126.99,126.85,383.1122883]
[1719227269140,69.907,126.99,126.85,383.1122883]
[1719227269310,22.717,126.99,126.85,383.1122883]
[1719227270245,31.573736,126.98,126.85,383.1122883]
[1719227270413,31.573736,126.98,126.86,45.0]
[1719227271225,31.573736,126.98,126.86,467.81290621]
[1719227273133,22.717,126.99,126.86,467.81290621]
[1719227273436,6.2007,126.97,126.86,422.81290621]
[1719227273736,15.0652,126.96,126.86,422.81290621]
[1719227273912,6.2007,126.95,126.86,422.81290621]
[1719227274636,69.6708,126.94,126.86,383.1122883]
[1719227275131,69.6708,126.94,126.78,429.38744847]
[1719227276543,69.6708,126.94,126.79,45.0]
[1719227277115,6.0299,126.93,126.79,45.0]
[1719227277433,53.2199,126.93,126.79,45.0]
[1719227277829,53.2199,126.93,126.78,422.88524847]
[1719227278212,53.2199,126.91,126.78,422.88524847]
[1719227278831,22.3617,126.9,126.78,422.88524847]
[1719227279215,69.5517,126.9,126.78,422.88524847]
[1719227279415,0.78876795,126.79,126.78,422.88524847]
[1719227279633,0.78876795,126.79,126.75,255.7]
[1719227279634,0.78876795,126.79,126.76,39.91425357]
[1719227280649,0.78876795,126.79,126.78,39.77296017]
[1719227280826,0.78876795,126.79,126.78,84.77296017]
[1719227281328,0.21193973,126.79,126.78,84.77296017]
[1719227281638,0.21193973,126.79,126.77,39.23494035]
[1719227282355,0.21193973,126.79,126.76,414.4422883]
[1719227282529,0.21193973,126.79,126.76,383.1122883]
[1719227284368,0.21193973,126.79,126.78,106.0598]
[1719227284528,41.569953,126.98,126.81,39.59305193]
[1719227284529,15.2827,126.93,126.81,39.59305193]
[1719227284729,15.2827,126.93,126.84,31.33]
[1719227284952,15.2827,126.93,126.85,45.0]
[1719227285554,0.57653981,126.92,126.85,45.0]
[1719227287036,15.2827,126.93,126.85,45.0]
[1719227287233,53.468653,126.98,126.86,6.2335]
[1719227287441,21.8987,126.98,126.87,45.0]
[1719227287631,21.8987,126.98,126.88,39.0356666]